fUSD/lending_fUSD_20250209
["ID","MTS","AMOUNT","RATE_DAILY","PERIOD"]
[352405010,1739085037258,-500.0,9.998e-05,2]
[352405011,1739085037267,-500.0,9.998e-05,2]
[352405012,1739085037276,-500.0,9.998e-05,2]
[352405014,1739085037286,-607.91456576,9.998e-05,2]
[352405015,1739085037295,-500.0,9.998e-05,2]
[352405016,1739085037304,-507.86991539,9.998e-05,2]
[352405017,1739085037313,-500.0,9.998e-05,2]
[352405018,1739085037322,-500.0,9.998e-05,2]
[352405019,1739085037333,-500.0,9.998e-05,2]
[352405020,1739085037344,-500.0,9.998e-05,2]
[352405021,1739085037355,-501.61832128,9.998e-05,2]
[352405022,1739085037364,-500.0,9.998e-05,2]
[352405023,1739085037374,-500.0,9.998e-05,2]
[352405024,1739085037384,-500.0,9.998e-05,2]
[352405025,1739085037393,-500.0,9.998e-05,2]
[352405026,1739085037402,-500.0,9.998e-05,2]
[352405027,1739085037413,-500.0,9.998e-05,2]
[352405028,1739085037423,-500.0,9.998e-05,2]
[352405029,1739085037432,-500.66699298,9.998e-05,2]
[352405030,1739085037443,-500.0,9.998e-05,2]
[352405031,1739085037452,-501.78996538,9.998e-05,2]
[352405032,1739085037461,-500.0,9.998e-05,2]
[352405033,1739085037471,-500.0,9.998e-05,2]
[352405034,1739085037481,-500.0,9.998e-05,2]
[352405035,1739085037492,-501.40819893,9.998e-05,2]
[352405036,1739085037501,-500.0,9.998e-05,2]
[352405037,1739085037510,-500.0,9.998e-05,2]
[352405038,1739085037520,-502.29130532,9.998e-05,2]
[352405039,1739085037529,-500.0,9.998e-05,2]
[352405040,1739085037538,-500.0,9.998e-05,2]
[352405041,1739085037548,-501.28309513,9.998e-05,2]
[352405042,1739085037558,-500.0,9.998e-05,2]
[352405043,1739085037567,-502.73995353,9.998e-05,2]
[352405044,1739085037576,-500.0,9.998e-05,2]
[352405045,1739085037586,-506.44106401,9.998e-05,2]
[352405046,1739085037595,-501.99791749,9.998e-05,2]
[352405047,1739085037605,-500.0,9.998e-05,2]
[352405048,1739085037614,-500.0,9.998e-05,2]
[352405049,1739085037623,-511.99,9.998e-05,2]
[352405050,1739085037634,-500.0,9.998e-05,2]
[352405051,1739085037644,-500.0,9.998e-05,2]
[352405052,1739085037653,-296.40192307,9.998e-05,2]
[352405053,1739085037662,-507.13,9.998e-05,2]
[352405054,1739085037671,-501.91566798,9.998e-05,2]
[352405055,1739085037682,-500.0,9.998e-05,2]
[352405056,1739085037692,-500.61505586,9.998e-05,2]
[352405057,1739085037701,-501.73386666,9.998e-05,2]
[352405058,1739085037710,-500.0,9.998e-05,2]
[352405059,1739085037719,-500.0,9.998e-05,2]
[352405060,1739085037728,-784.72,9.998e-05,2]
[352405061,1739085037737,-500.0,9.998e-05,2]
[352405062,1739085037746,-500.0,9.998e-05,2]
[352405063,1739085037755,-865.69,9.998e-05,2]
[352405064,1739085037764,-500.0,9.998e-05,2]
[352405065,1739085037773,-500.0,9.998e-05,2]
[352405066,1739085037783,-500.0,9.998e-05,2]
[352405067,1739085037793,-500.0,9.998e-05,2]
[352405068,1739085037802,-503.83813721,9.998e-05,2]
[352405069,1739085037811,-500.0,9.998e-05,2]
[352405070,1739085037821,-502.61271423,9.998e-05,2]
[352405071,1739085037830,-502.2046463,9.998e-05,2]
[352405072,1739085037840,-547.49138743,9.998e-05,2]
[352405073,1739085037849,-500.0,9.998e-05,2]
[352405074,1739085037858,-500.0,9.998e-05,2]
[352405075,1739085037867,-500.0,9.998e-05,2]
[352405076,1739085037876,-500.8547965,9.998e-05,2]
[352405078,1739085037885,-500.81113882,9.998e-05,2]
[352405079,1739085037895,-500.0,9.998e-05,2]
[352405080,1739085037904,-500.66711772,9.998e-05,2]
[352405081,1739085037913,-500.0,9.998e-05,2]
[352405082,1739085037922,-501.38810395,9.998e-05,2]
[352405083,1739085037931,-500.0,9.998e-05,2]
[352405084,1739085037940,-500.0,9.998e-05,2]
[352405085,1739085037949,-500.0,9.998e-05,2]
[352405086,1739085037959,-501.07924199,9.998e-05,2]
[352405087,1739085037969,-501.9439067,9.998e-05,2]
[352405088,1739085037978,-500.0,9.998e-05,2]
[352405090,1739085037988,-500.0,9.998e-05,2]
[352405091,1739085037997,-500.0,9.998e-05,2]
[352405092,1739085038006,-502.20121396,9.998e-05,2]
[352405093,1739085038015,-1300.24,9.998e-05,2]
[352405094,1739085038024,-500.0,9.998e-05,2]
[352405095,1739085038034,-500.0,9.998e-05,2]
[352405096,1739085038043,-1089.52,9.998e-05,2]
[352405097,1739085038052,-505.92020281,9.998e-05,2]
[352405099,1739085038061,-500.0,9.998e-05,2]
[352405100,1739085038070,-500.0,9.998e-05,2]
[352405101,1739085038079,-500.0,9.998e-05,2]
[352405102,1739085038088,-500.0,9.998e-05,2]
[352405103,1739085038099,-502.79725164,9.998e-05,2]
[352405104,1739085038109,-496.62553089,9.998e-05,2]
[352405105,1739085038118,-500.0,9.998e-05,2]
[352405106,1739085038128,-500.0,9.998e-05,2]
[352405107,1739085038137,-500.0,9.998e-05,2]
[352405108,1739085038147,-501.1142534,9.998e-05,2]
[352405109,1739085038157,-500.0,9.998e-05,2]
[352405110,1739085038166,-500.0,9.998e-05,2]
[352405111,1739085038175,-500.0,9.998e-05,2]
[352405112,1739085038184,-500.0,9.998e-05,2]
[352405113,1739085038194,-501.78216435,9.998e-05,2]
[352405114,1739085038203,-502.73509571,9.998e-05,2]
[352405115,1739085038212,-500.0,9.998e-05,2]
[352405116,1739085038222,-503.69616319,9.998e-05,2]
[352405117,1739085038231,-500.0,9.998e-05,2]
[352405118,1739085038240,-500.0,9.998e-05,2]
[352405119,1739085038249,-500.0,9.998e-05,2]
[352405120,1739085038259,-500.0,9.998e-05,2]
[352405121,1739085038267,-500.0,9.998e-05,2]
[352405122,1739085038277,-523.31093142,9.998e-05,2]
[352405123,1739085038286,-500.0,9.998e-05,2]
[352405124,1739085038295,-500.0,9.998e-05,2]
[352405125,1739085038304,-500.0,9.998e-05,2]
[352405126,1739085038314,-500.0,9.998e-05,2]
[352405127,1739085038323,-500.0,9.998e-05,2]
[352405128,1739085038333,-502.43776658,9.998e-05,2]
[352405129,1739085038342,-500.0,9.998e-05,2]
[352405130,1739085038352,-500.0,9.998e-05,2]
[352405131,1739085038361,-628.37,9.998e-05,2]
[352405132,1739085038370,-500.0,9.998e-05,2]
[352405133,1739085038381,-500.0,9.998e-05,2]
[352405134,1739085038390,-501.64009758,9.998e-05,2]
[352405135,1739085038399,-500.0,9.998e-05,2]
[352405136,1739085038410,-500.0,9.998e-05,2]
[352405137,1739085038419,-500.0,9.998e-05,2]
[352405138,1739085038428,-500.0,9.998e-05,2]
[352405139,1739085038437,-500.0,9.998e-05,2]
[352405140,1739085038447,-502.23260227,9.998e-05,2]
[352405141,1739085038455,-500.0,9.998e-05,2]
[352405142,1739085038633,-500.0,9.998e-05,2]
[352405143,1739085038642,-500.0,9.998e-05,2]
[352405144,1739085038651,-500.0,9.998e-05,2]
[352405145,1739085038661,-500.0,9.998e-05,2]
[352405146,1739085038670,-500.0,9.998e-05,2]
[352405147,1739085038679,-500.0,9.998e-05,2]
[352405148,1739085038689,-500.0,9.998e-05,2]
[352405149,1739085038698,-501.14082925,9.998e-05,2]
[352405150,1739085038707,-503.36919387,9.998e-05,2]
[352405151,1739085038716,-490.53376015,9.998e-05,2]
[352405152,1739085038726,-500.0,9.998e-05,2]
[352405153,1739085038735,-500.0,9.998e-05,2]
[352405154,1739085038744,-500.0,9.998e-05,2]
[352405155,1739085038753,-500.0,9.998e-05,2]
[352405156,1739085038762,-504.38459038,9.998e-05,2]
[352405157,1739085038773,-500.0,9.998e-05,2]
[352405158,1739085038782,-500.0,9.998e-05,2]
[352405159,1739085038792,-500.0,9.998e-05,2]
[352405160,1739085038802,-500.0,9.998e-05,2]
[352405161,1739085038811,-500.0,9.998e-05,2]
[352405162,1739085038829,-501.58608557,9.998e-05,2]
[352405163,1739085038840,-502.40758748,9.998e-05,2]
[352405164,1739085038849,-500.0,9.998e-05,2]
[352405165,1739085038859,-500.0,9.998e-05,2]
[352405166,1739085038867,-500.0,9.998e-05,2]
[352405167,1739085038876,-502.61958179,9.998e-05,2]
[352405168,1739085038885,-500.0,9.998e-05,2]
[352405169,1739085038894,-500.0,9.998e-05,2]
[352405170,1739085038904,-449.78167362,9.998e-05,2]
[352405171,1739085038913,-500.0,9.998e-05,2]
[352405172,1739085038922,-1129.96,9.998e-05,2]
[352405173,1739085038931,-500.0,9.998e-05,2]
[352405174,1739085038939,-500.0,9.998e-05,2]
[352405175,1739085038948,-500.0,9.998e-05,2]
[352405176,1739085038959,-500.0,9.998e-05,2]
[352405177,1739085038968,-500.0,9.998e-05,2]
[352405178,1739085038978,-500.0,9.998e-05,2]
[352405179,1739085038987,-500.0,9.998e-05,2]
[352405180,1739085038997,-573.05052004,9.998e-05,2]
[352405181,1739085039006,-500.7581459,9.998e-05,2]
[352405182,1739085039015,-500.0,9.998e-05,2]
[352405183,1739085039025,-500.0,9.998e-05,2]
[352405184,1739085039044,-500.0,9.998e-05,2]
[352405185,1739085039062,-500.0,9.998e-05,2]
[352405186,1739085039071,-500.0,9.998e-05,2]
[352405187,1739085039081,-504.97315998,9.998e-05,2]
[352405188,1739085039090,-504.31683936,9.998e-05,2]
[352405189,1739085039099,-500.0,9.998e-05,2]
[352405190,1739085039108,-500.0,9.998e-05,2]
[352405191,1739085039118,-504.22,9.998e-05,2]
[352405192,1739085039127,-500.0,9.998e-05,2]
[352405193,1739085039136,-500.0,9.998e-05,2]
[352405194,1739085039145,-500.0,9.998e-05,2]
[352405195,1739085039155,-500.0,9.998e-05,2]
[352405196,1739085039165,-500.0,9.998e-05,2]
[352405197,1739085039174,-500.0,9.998e-05,2]
[352405198,1739085039183,-500.0,9.998e-05,2]
[352405199,1739085039192,-500.0,9.998e-05,2]
[352405200,1739085039202,-502.8004228,9.998e-05,2]
[352405201,1739085039212,-772.69,9.998e-05,2]
[352405202,1739085039222,-500.0,9.998e-05,2]
[352405203,1739085039231,-500.0,9.998e-05,2]
[352405204,1739085039241,-500.0,9.998e-05,2]
[352405205,1739085039250,-500.0,9.998e-05,2]
[352405206,1739085039259,-500.0,9.998e-05,2]
[352405207,1739085039268,-501.26798861,9.998e-05,2]
[352405208,1739085039277,-500.0,9.998e-05,2]
[352405209,1739085039287,-500.0,9.998e-05,2]
[352405210,1739085039296,-500.0,9.998e-05,2]
[352405211,1739085039306,-500.0,9.998e-05,2]
[352405212,1739085039315,-500.0,9.998e-05,2]
[352405213,1739085039324,-501.56599797,9.998e-05,2]
[352405214,1739085039335,-500.0,9.998e-05,2]
[352405215,1739085039345,-500.0,9.998e-05,2]
[352405216,1739085039355,-500.0,9.998e-05,2]
[352405217,1739085039364,-2136.01,9.998e-05,2]
[352405218,1739085039374,-500.0,9.998e-05,2]
[352405219,1739085039384,-500.0,9.998e-05,2]
[352405220,1739085039393,-500.0,9.998e-05,2]
[352405221,1739085039403,-500.0,9.998e-05,2]
[352405222,1739085039413,-500.0,9.998e-05,2]
[352405223,1739085039422,-500.0,9.998e-05,2]
[352405226,1739085039432,-500.0,9.998e-05,2]
[352405228,1739085039441,-500.0,9.998e-05,2]
[352405230,1739085039450,-500.0,9.998e-05,2]
[352405231,1739085039460,-500.0,9.998e-05,2]
[352405232,1739085039470,-502.49699157,9.998e-05,2]
[352405233,1739085039479,-501.51725476,9.998e-05,2]
[352405234,1739085039488,-500.0,9.998e-05,2]
[352405235,1739085039498,-500.0,9.998e-05,2]
[352405236,1739085039507,-500.0,9.998e-05,2]
[352405237,1739085039517,-500.86994762,9.998e-05,2]
[352405238,1739085039526,-500.0,9.998e-05,2]
[352405239,1739085039535,-500.0,9.998e-05,2]
[352405240,1739085039545,-503.18043211,9.998e-05,2]
[352405241,1739085039555,-500.0,9.998e-05,2]
[352405242,1739085039564,-500.0,9.998e-05,2]
[352405243,1739085039573,-500.0,9.998e-05,2]
[352405244,1739085039582,-500.0,9.998e-05,2]
[352405245,1739085039591,-500.0,9.998e-05,2]
[352405246,1739085039603,-500.0,9.998e-05,2]
[352405247,1739085039613,-500.0,9.998e-05,2]
[352405248,1739085039622,-500.0,9.998e-05,2]
[352405249,1739085039632,-500.0,9.998e-05,2]
[352405250,1739085039641,-500.0,9.998e-05,2]
[352405251,1739085039650,-502.52305501,9.998e-05,2]
[352405252,1739085039660,-500.0,9.998e-05,2]
[352405253,1739085039669,-450.66728888,9.998e-05,2]
[352405254,1739085039678,-500.81879477,9.998e-05,2]
[352405255,1739085039687,-500.0,9.998e-05,2]
[352405256,1739085039696,-500.63920776,9.998e-05,2]
[352405257,1739085039706,-503.8073925,9.998e-05,2]
[352405258,1739085039716,-500.0,9.998e-05,2]
[352405259,1739085039725,-500.93269542,9.998e-05,2]
[352405260,1739085039734,-500.0,9.998e-05,2]
[352405261,1739085039744,-500.0,9.998e-05,2]
[352405262,1739085039753,-500.0,9.998e-05,2]
[352405263,1739085039763,-272.58184919,9.998e-05,2]
[352405264,1739085039772,-500.0,9.998e-05,2]
[352405265,1739085039781,-500.0,9.998e-05,2]
[352405266,1739085039790,-503.94660291,9.998e-05,2]
[352405267,1739085039799,-500.0,9.998e-05,2]
[352405268,1739085039809,-500.0,9.998e-05,2]
[352405269,1739085039818,-500.72886427,9.998e-05,2]
[352405270,1739085039827,-500.67257677,9.998e-05,2]
[352405271,1739085039837,-500.0,9.998e-05,2]
[352405272,1739085039846,-500.0,9.998e-05,2]
[352405273,1739085039857,-500.0,9.998e-05,2]
[352405274,1739085039867,-500.0,9.998e-05,2]
[352405275,1739085039876,-501.07685082,9.998e-05,2]
[352405276,1739085039885,-500.38113925,9.998e-05,2]
[352405277,1739085039895,-500.0,9.998e-05,2]
[352405278,1739085039904,-500.0,9.998e-05,2]
[352405279,1739085039913,-502.54514172,9.998e-05,2]
[352405280,1739085039923,-500.0,9.998e-05,2]
[352405281,1739085039932,-500.0,9.998e-05,2]
[352405282,1739085039942,-500.0,9.998e-05,2]
[352405283,1739085039951,-512.48484735,9.998e-05,2]
[352405284,1739085039960,-500.0,9.998e-05,2]
[352405285,1739085039969,-500.0,9.998e-05,2]
[352405286,1739085039979,-500.0,9.998e-05,2]
[352405287,1739085039988,-500.0,9.998e-05,2]
[352405288,1739085039997,-500.0,9.998e-05,2]
[352405289,1739085040006,-500.46614152,9.998e-05,2]
[352405290,1739085040015,-500.0,9.998e-05,2]
[352405291,1739085040024,-509.13582857,9.998e-05,2]
[352405292,1739085040033,-502.13033844,9.998e-05,2]
[352405293,1739085040043,-525.18,9.998e-05,2]
[352405294,1739085040053,-500.0,9.998e-05,2]
[352405295,1739085040062,-500.0,9.998e-05,2]
[352405296,1739085040071,-500.0,9.998e-05,2]
[352405297,1739085040080,-500.0,9.998e-05,2]
[352405298,1739085040090,-502.20209436,9.998e-05,2]
[352405299,1739085040102,-500.0,9.998e-05,2]
[352405300,1739085040115,-500.0,9.998e-05,2]
[352405301,1739085040125,-247.38076983,9.998e-05,2]
[352405302,1739085040134,-500.0,9.998e-05,2]
[352405303,1739085040144,-500.0,9.998e-05,2]
[352405304,1739085040156,-502.11964727,9.998e-05,2]
[352405305,1739085040167,-502.59440088,9.998e-05,2]
[352405306,1739085040177,-500.0,9.998e-05,2]
[352405307,1739085040187,-500.0,9.998e-05,2]
[352405308,1739085040196,-500.0,9.998e-05,2]
[352405309,1739085040206,-500.0,9.998e-05,2]
[352405310,1739085040215,-500.0,9.998e-05,2]
[352405311,1739085040225,-500.0,9.998e-05,2]
[352405312,1739085040234,-500.0,9.998e-05,2]
[352405313,1739085040243,-538.15,9.998e-05,2]
[352405314,1739085040253,-500.0,9.998e-05,2]
[352405315,1739085040263,-512.00685907,9.998e-05,2]
[352405316,1739085040272,-500.0,9.998e-05,2]
[352405317,1739085040282,-500.0,9.998e-05,2]
[352405318,1739085040292,-500.0,9.998e-05,2]
[352405319,1739085040302,-503.35220061,9.998e-05,2]
[352405320,1739085040311,-500.0,9.998e-05,2]
[352405321,1739085040322,-500.0,9.998e-05,2]
[352405322,1739085040333,-500.0,9.998e-05,2]
[352405323,1739085040345,-501.34638298,9.998e-05,2]
[352405324,1739085040356,-500.0,9.998e-05,2]
[352405325,1739085040366,-500.0,9.998e-05,2]
[352405326,1739085040379,-503.35038223,9.998e-05,2]
[352405327,1739085040389,-501.78630117,9.999e-05,2]
[352405328,1739085040399,-500.50916,9.999e-05,2]
[352405329,1739085040408,-268.09108266,9.999e-05,2]
[352405330,1739085040419,-267.32903002,9.999e-05,2]
[352405331,1739085040437,-491.2478925,9.999e-05,2]
[352405332,1739085040751,-9.16407892,9.999e-05,2]
[352405333,1739085040760,-339.17612281,9.999e-05,2]
[352405334,1739085040770,-359.88128754,9.999e-05,2]
[352405335,1739085040779,-500.0,9.999e-05,2]
[352405336,1739085040788,-500.0,9.999e-05,2]
[352405337,1739085040798,-123.92020663,9.999e-05,2]
[352405338,1739085040810,-378.81055649,9.999e-05,2]
[352405339,1739085040819,-508.4589134,9.999e-05,2]
[352405340,1739085040828,-506.1704193,9.999e-05,2]
[352405341,1739085040837,-466.02368699,9.999e-05,2]
[352405342,1739085040849,-55.83233102,9.999e-05,2]
[352405343,1739085040859,-500.0,9.999e-05,2]
[352405344,1739085040869,-150.45854594,9.999e-05,2]
[352405345,1739085040884,-349.54145406,9.999e-05,2]
[352405346,1739085040893,-504.40841918,9.999e-05,2]
[352405347,1739085040903,-58.31214089,9.999e-05,2]
[352405348,1739085040914,-133.85465017,9.999e-05,2]
[352405349,1739085040923,-500.0,9.999e-05,2]
[352405350,1739085040933,-500.0,9.999e-05,2]
[352405351,1739085040942,-500.0,9.999e-05,2]
[352405352,1739085040951,-560.98486621,9.999e-05,2]
[352405353,1739085040961,-256.66412613,9.999e-05,2]
[352405354,1739085040971,-500.58049906,9.999e-05,2]
[352405355,1739085040980,-500.0,9.999e-05,2]
[352405356,1739085040989,-500.0,9.999e-05,2]
[352405357,1739085040998,-291.70620789,9.999e-05,2]
[352405358,1739085041007,-501.27533173,9.999e-05,2]
[352405359,1739085041015,-500.0,9.999e-05,2]
[352405360,1739085041023,-500.0,9.999e-05,2]
[352405361,1739085041032,-165.72207684,9.999e-05,2]
[352405362,1739085041041,-500.0,9.999e-05,2]
[352405363,1739085041050,-500.0,9.999e-05,2]
[352405364,1739085041059,-500.0,9.999e-05,2]
[352405365,1739085041067,-500.0,9.999e-05,2]
[352405366,1739085041076,-500.0,9.999e-05,2]
[352405367,1739085041084,-500.65868397,9.999e-05,2]
[352405368,1739085041092,-500.0,9.999e-05,2]
[352405369,1739085041102,-500.0,9.999e-05,2]
[352405370,1739085041110,-500.0,9.999e-05,2]
[352405371,1739085041118,-500.0,9.999e-05,2]
[352405372,1739085041127,-346.04595722,9.999e-05,2]
[352405373,1739085041135,-500.0,9.999e-05,2]
[352405374,1739085041144,-500.0,9.999e-05,2]
[352405375,1739085041153,-500.0,9.999e-05,2]
[352405376,1739085041162,-500.0,9.999e-05,2]
[352405377,1739085041171,-323.37414327,9.999e-05,2]
[352405378,1739085041184,-176.62585673,9.999e-05,2]
[352405379,1739085041194,-500.0,9.999e-05,2]
[352405380,1739085041204,-500.0,9.999e-05,2]
[352405381,1739085041214,-500.0,9.999e-05,2]
[352405382,1739085041223,-500.0,9.999e-05,2]
[352405383,1739085041233,-500.0,9.999e-05,2]
[352405384,1739085041243,-503.25492647,9.999e-05,2]
[352405385,1739085041252,-500.0,9.999e-05,2]
[352405386,1739085041262,-500.0,9.999e-05,2]
[352405387,1739085041271,-500.0,9.999e-05,2]
[352405388,1739085041281,-500.0,9.999e-05,2]
[352405389,1739085041291,-500.0,9.999e-05,2]
[352405390,1739085041300,-500.0,9.999e-05,2]
[352405391,1739085041309,-502.81223051,9.999e-05,2]
[352405392,1739085041319,-500.0,9.999e-05,2]
[352405393,1739085041330,-500.0,9.999e-05,2]
[352405394,1739085041343,-500.8976492,9.999e-05,2]
[352405395,1739085041356,-500.0,9.999e-05,2]
[352405396,1739085041365,-500.0,9.999e-05,2]
[352405397,1739085041376,-508.56035461,9.999e-05,2]
[352405398,1739085041387,-500.0,9.999e-05,2]
[352405399,1739085041397,-500.0,9.999e-05,2]
[352405400,1739085041407,-500.0,9.999e-05,2]
[352405401,1739085041419,-192.36892135,9.999e-05,2]
[352405402,1739085041430,-500.0,9.999e-05,2]
[352405403,1739085041440,-500.0,9.999e-05,2]
[352405404,1739085041450,-500.0,9.999e-05,2]
[352405405,1739085041460,-500.0,9.999e-05,2]
[352405406,1739085041469,-500.0,9.999e-05,2]
[352405407,1739085041479,-500.0,9.999e-05,2]
[352405408,1739085041489,-500.0,9.999e-05,2]
[352405409,1739085041499,-500.0,9.999e-05,2]
[352405410,1739085041509,-500.0,9.999e-05,2]
[352405411,1739085041519,-500.0,9.999e-05,2]
[352405412,1739085041528,-501.19731328,9.999e-05,2]
[352405413,1739085041537,-500.0,9.999e-05,2]
[352405414,1739085041547,-500.0,9.999e-05,2]
[352405415,1739085041556,-509.50987224,9.999e-05,2]
[352405416,1739085041566,-500.0,9.999e-05,2]
[352405417,1739085041575,-500.0,9.999e-05,2]
[352405418,1739085041585,-500.0,9.999e-05,2]
[352405419,1739085041595,-500.0,9.999e-05,2]
[352405420,1739085041606,-500.0,9.999e-05,2]
[352405421,1739085041615,-500.0,9.999e-05,2]
[352405422,1739085041625,-500.0,9.999e-05,2]
[352405423,1739085041635,-500.0,9.999e-05,2]
[352405424,1739085041645,-500.0,9.999e-05,2]
[352405425,1739085041655,-500.61442051,9.999e-05,2]
[352405426,1739085041664,-500.0,9.999e-05,2]
[352405427,1739085041674,-500.0,9.999e-05,2]
[352405428,1739085041684,-500.0,9.999e-05,2]
[352405429,1739085041694,-503.87003087,9.999e-05,2]
[352405430,1739085041704,-500.0,9.999e-05,2]
[352405431,1739085041714,-500.0,9.999e-05,2]
[352405432,1739085041724,-500.0,9.999e-05,2]
[352405433,1739085041734,-500.0,9.999e-05,2]
[352405434,1739085041743,-500.0,9.999e-05,2]
[352405435,1739085041753,-500.0,9.999e-05,2]
[352405436,1739085041763,-500.0,9.999e-05,2]
[352405437,1739085041771,-500.0,9.999e-05,2]
[352405438,1739085041779,-197.01562423,9.999e-05,2]
[352405439,1739085041792,-302.98437577,9.999e-05,2]
[352405440,1739085041801,-124.65677943,9.999e-05,2]
[352405441,1739085041820,-375.34322057,9.999e-05,2]
[352405442,1739085041829,-500.0,9.999e-05,2]
[352405443,1739085041839,-500.0,9.999e-05,2]
[352405444,1739085041848,-500.0,9.999e-05,2]
[352405445,1739085041858,-134.72418889,9.999e-05,2]
[352405446,1739085041870,-365.27581111,9.999e-05,2]
[352405447,1739085042062,-500.0,9.999e-05,2]
[352405448,1739085042072,-500.0,9.999e-05,2]
[352405449,1739085042081,-500.0,9.999e-05,2]
[352405450,1739085042091,-178.89467242,9.999e-05,2]
[352405451,1739085042103,-321.10532758,9.999e-05,2]
[352405452,1739085042113,-500.0,9.999e-05,2]
[352405453,1739085042122,-77.30267242,9.999e-05,2]
[352405454,1739085042152,-422.69732758,9.999e-05,2]
[352405455,1739085042162,-500.0,9.999e-05,2]
[352405456,1739085042172,-500.0,9.999e-05,2]
[352405457,1739085042181,-500.0,9.999e-05,2]
[352405458,1739085042191,-352.95,9.999e-05,2]
[352405459,1739085042200,-500.0,9.999e-05,2]
[352405460,1739085042210,-500.0,9.999e-05,2]
[352405461,1739085042219,-500.0,9.999e-05,2]
[352405462,1739085042229,-500.0,9.999e-05,2]
[352405464,1739085042238,-500.0,9.999e-05,2]
[352405465,1739085042247,-500.0,9.999e-05,2]
[352405467,1739085042256,-500.0,9.999e-05,2]
[352405469,1739085042266,-500.0,9.999e-05,2]
[352405471,1739085042275,-239.73819342,9.999e-05,2]
[352405477,1739085042303,-500.74886774,9.998e-05,2]
[352405478,1739085042313,-260.26180658,9.999e-05,2]
[352405481,1739085042322,-500.0,9.999e-05,2]
[352405483,1739085042332,-500.0,9.999e-05,2]
[352405486,1739085042344,-500.0,9.999e-05,2]
[352405488,1739085042355,-507.7209899,9.999e-05,2]
[352405490,1739085042364,-500.0,9.999e-05,2]
[352405492,1739085042373,-500.0,9.999e-05,2]
[352405494,1739085042385,-302.38453297,9.999e-05,2]
[352405495,1739085042394,-500.0,9.999e-05,2]
[352405496,1739085042403,-500.0,9.999e-05,2]
[352405497,1739085042415,-500.0,9.999e-05,2]
[352405498,1739085042424,-506.99424087,9.999e-05,2]
[352405499,1739085042433,-500.0,9.999e-05,2]
[352405501,1739085042443,-509.32605058,9.999e-05,2]
[352405503,1739085042452,-500.0,9.999e-05,2]
[352405505,1739085042461,-346.99457599,9.999e-05,2]
[352405506,1739085042473,-153.00542401,9.999e-05,2]
[352405508,1739085042482,-500.0,9.999e-05,2]
[352405509,1739085042491,-500.0,9.999e-05,2]
[352405510,1739085042500,-500.0,9.999e-05,2]
[352405511,1739085042510,-500.0,9.999e-05,2]
[352405512,1739085042519,-500.0,9.999e-05,2]
[352405513,1739085042528,-500.0,9.999e-05,2]
[352405514,1739085042538,-500.0,9.999e-05,2]
[352405515,1739085042547,-500.0,9.999e-05,2]
[352405516,1739085042557,-500.0,9.999e-05,2]
[352405517,1739085042566,-500.0,9.999e-05,2]
[352405518,1739085042575,-500.0,9.999e-05,2]
[352405519,1739085042584,-500.0,9.999e-05,2]
[352405520,1739085042594,-500.0,9.999e-05,2]
[352405521,1739085042604,-500.0,9.999e-05,2]
[352405522,1739085042613,-500.0,9.999e-05,2]
[352405523,1739085042622,-421.41105214,9.999e-05,2]
[352405524,1739085042631,-500.0,9.999e-05,2]
[352405525,1739085042642,-500.0,9.999e-05,2]
[352405526,1739085042651,-500.0,9.999e-05,2]
[352405527,1739085042660,-500.0,9.999e-05,2]
[352405528,1739085042669,-500.0,9.999e-05,2]
[352405529,1739085042678,-500.0,9.999e-05,2]
[352405530,1739085042688,-500.0,9.999e-05,2]
[352405531,1739085042697,-502.78339277,9.999e-05,2]
[352405532,1739085042706,-500.0,9.999e-05,2]
[352405533,1739085042716,-502.64462557,9.999e-05,2]
[352405534,1739085042725,-500.0,9.999e-05,2]
[352405535,1739085042735,-500.0,9.999e-05,2]
[352405536,1739085042744,-500.0,9.999e-05,2]
[352405537,1739085042754,-500.0,9.999e-05,2]
[352405538,1739085042763,-317.22257319,9.999e-05,2]
[352405539,1739085042773,-500.0,9.999e-05,2]